[Event "Live Chess"]
[Site "Chess.com"]
[Date "2024.06.02"]
[Round "-"]
[White "booktrunk"]
[Black "davigator"]
[Result "0-1"]
[WhiteElo "1494"]
[BlackElo "2347"]
[TimeControl "300"]
[EndTime "5:53:03 PDT"]
[Termination "davigator won by resignation"]

1. d4 {[%clk 0:04:55.5]} 1... Nf6 {[%clk 0:04:58.2]} 2. Nc3 {[%clk 0:04:55.4]}
2... d5 {[%clk 0:04:56.1]} 3. Bf4 {[%clk 0:04:55.3]} 3... c6 {[%clk 0:04:51.5]}
4. Nb5 {[%clk 0:04:55.2]} 4... cxb5 {[%clk 0:04:50]} 5. a3 {[%clk 0:04:03]} 5...
Nc6 {[%clk 0:04:45.7]} 6. e3 {[%clk 0:04:01.9]} 6... a6 {[%clk 0:04:44.5]} 7.
Nf3 {[%clk 0:04:00.2]} 7... Bg4 {[%clk 0:04:43.2]} 8. h3 {[%clk 0:03:58.4]} 8...
Bh5 {[%clk 0:04:41.8]} 9. g4 {[%clk 0:03:56.8]} 9... Bg6 {[%clk 0:04:40.8]} 10.
Nh4 {[%clk 0:03:54]} 10... e6 {[%clk 0:04:36.3]} 11. Nxg6 {[%clk 0:03:52.6]}
11... hxg6 {[%clk 0:04:34.9]} 12. Bd3 {[%clk 0:03:50.5]} 12... b4 {[%clk
0:04:32.5]} 13. a4 {[%clk 0:03:47.7]} 13... Bd6 {[%clk 0:04:30.5]} 14. Bxd6
{[%clk 0:03:45.3]} 14... Qxd6 {[%clk 0:04:29.7]} 15. Qf3 {[%clk 0:03:43.2]}
15... b3 {[%clk 0:04:24]} 16. c3 {[%clk 0:03:40.5]} 16... Na5 {[%clk 0:04:22.6]}
17. Kd2 {[%clk 0:03:26.2]} 17... e5 {[%clk 0:04:20.9]} 18. dxe5 {[%clk 0:03:24]}
18... Qxe5 {[%clk 0:04:20.3]} 19. Qg2 {[%clk 0:03:16.8]} 19... Ne4+ {[%clk
0:04:18.5]} 20. Ke2 {[%clk 0:03:12.1]} 20... Rc8 {[%clk 0:04:15.6]} 21. f4
{[%clk 0:03:07.7]} 21... Qe7 {[%clk 0:04:14.5]} 22. f5 {[%clk 0:03:05]} 22... g5
{[%clk 0:03:58.7]} 23. Rhc1 {[%clk 0:03:00.9]} 23... Nc4 {[%clk 0:03:50.4]} 24.
Rab1 {[%clk 0:02:57.3]} 24... O-O {[%clk 0:03:46.6]} 25. Kf1 {[%clk 0:02:54.5]}
25... Ncd2+ {[%clk 0:03:43.3]} 0-1

[Event "Live Chess"]
[Site "Chess.com"]
[Date "2024.06.02"]
[Round "-"]
[White "missedJariChance"]
[Black "Mary_cool"]
[Result "0-1"]
[WhiteElo "1388"]
[BlackElo "1955"]
[TimeControl "300"]
[EndTime "5:53:11 PDT"]
[Termination "Mary_cool won by resignation"]

1. b3 {[%clk 0:04:55.1]} 1... e6 {[%clk 0:04:53]} 2. Bb2 {[%clk 0:04:51.4]} 2...
Nf6 {[%clk 0:04:52.2]} 3. Nf3 {[%clk 0:04:49.7]} 3... d5 {[%clk 0:04:50.2]} 4.
e3 {[%clk 0:04:48.6]} 4... Be7 {[%clk 0:04:46.9]} 5. c4 {[%clk 0:04:44.2]} 5...
O-O {[%clk 0:04:40.2]} 6. cxd5 {[%clk 0:04:41.5]} 6... Nxd5 {[%clk 0:04:31.6]}
7. Be2 {[%clk 0:04:40.1]} 7... c5 {[%clk 0:04:30.1]} 8. O-O {[%clk 0:04:38.2]}
8... Nc6 {[%clk 0:04:26.9]} 9. Nc3 {[%clk 0:04:35.8]} 9... b6 {[%clk 0:04:23.3]}
10. d4 {[%clk 0:04:18.6]} 10... cxd4 {[%clk 0:04:18.6]} 11. Nxd4 {[%clk
0:04:14.9]} 11... Nxd4 {[%clk 0:04:13.7]} 12. Qxd4 {[%clk 0:04:13.1]} 12... Bf6
{[%clk 0:04:12.4]} 13. Qd2 {[%clk 0:04:04.7]} 13... Nxc3 {[%clk 0:04:07.7]} 14.
Bxc3 {[%clk 0:04:02.5]} 14... Qxd2 {[%clk 0:04:06.2]} 15. Bxd2 {[%clk
0:03:59.9]} 15... Bxa1 {[%clk 0:04:05.2]} 16. Rxa1 {[%clk 0:03:59.5]} 16... Bb7
{[%clk 0:04:04]} 17. Rc1 {[%clk 0:03:53.1]} 17... Rac8 {[%clk 0:04:01.4]} 0-1

[Event "Live Chess"]
[Site "Chess.com"]
[Date "2024.06.02"]
[Round "-"]
[White "LL220284LL"]
[Black "KeithArkell"]
[Result "1/2-1/2"]
[WhiteElo "2495"]
[BlackElo "2419"]
[TimeControl "300"]
[EndTime "5:53:18 PDT"]
[Termination "Game drawn by agreement"]

1. e3 {[%clk 0:04:58.1]} 1... c5 {[%clk 0:04:59]} 2. b3 {[%clk 0:04:57.3]} 2...
d5 {[%clk 0:04:57.3]} 3. Nf3 {[%clk 0:04:56.7]} 3... Nf6 {[%clk 0:04:56.8]} 4.
Bb2 {[%clk 0:04:56.3]} 4... g6 {[%clk 0:04:56.4]} 5. Be2 {[%clk 0:04:55.6]} 5...
Bg7 {[%clk 0:04:55.9]} 6. O-O {[%clk 0:04:54.9]} 6... O-O {[%clk 0:04:55.2]} 7.
d4 {[%clk 0:04:54]} 7... cxd4 {[%clk 0:04:54.1]} 8. Nxd4 {[%clk 0:04:52.6]} 8...
Nc6 {[%clk 0:04:53.3]} 9. Nd2 {[%clk 0:04:51.4]} 9... Re8 {[%clk 0:04:51.4]} 10.
c4 {[%clk 0:04:49.9]} 10... e5 {[%clk 0:04:50.6]} 11. Nxc6 {[%clk 0:04:48.6]}
11... bxc6 {[%clk 0:04:50]} 12. cxd5 {[%clk 0:04:47.3]} 12... cxd5 {[%clk
0:04:49.2]} 13. Rc1 {[%clk 0:04:46.5]} 13... a5 {[%clk 0:04:48.3]} 14. Bb5
{[%clk 0:04:44.9]} 14... Bd7 {[%clk 0:04:46]} 15. Qe2 {[%clk 0:04:40.2]} 15...
Qb6 {[%clk 0:04:43.7]} 16. Bxd7 {[%clk 0:04:37.2]} 16... Nxd7 {[%clk 0:04:42.8]}
17. e4 {[%clk 0:04:25.3]} 17... d4 {[%clk 0:04:34.5]} 18. Nc4 {[%clk 0:04:24]}
18... Qa6 {[%clk 0:04:33.1]} 19. Qg4 {[%clk 0:03:59]} 19... Nf6 {[%clk
0:04:28.4]} 20. Qf3 {[%clk 0:03:53.2]} 20... Rab8 {[%clk 0:04:27.9]} 21. Ba3
{[%clk 0:03:39.6]} 21... a4 {[%clk 0:04:21.6]} 22. Bd6 {[%clk 0:03:37.4]} 22...
Rb5 {[%clk 0:04:16.1]} 23. b4 {[%clk 0:03:28.8]} 23... Qb7 {[%clk 0:04:14.9]}
24. Rfe1 {[%clk 0:03:24.6]} 24... Rxb4 {[%clk 0:04:11.6]} 25. Bxb4 {[%clk
0:03:23]} 25... Qxb4 {[%clk 0:04:10.8]} 26. a3 {[%clk 0:03:18.9]} 26... Qe7
{[%clk 0:04:05.8]} 27. Qd1 {[%clk 0:03:14.7]} 27... Bh6 {[%clk 0:03:49.8]} 28.
Rb1 {[%clk 0:03:10.4]} 28... Qc5 {[%clk 0:03:43.2]} 29. Qxa4 {[%clk 0:02:58.1]}
29... Rc8 {[%clk 0:03:35.8]} 30. Nb6 {[%clk 0:02:54]} 30... Rb8 {[%clk
0:03:29.6]} 31. Qb4 {[%clk 0:02:34.2]} 31... Qxb4 {[%clk 0:03:27.4]} 32. Rxb4
{[%clk 0:02:32.3]} 32... Bf8 {[%clk 0:03:26]} 33. Rb3 {[%clk 0:02:29.5]} 33...
Bxa3 {[%clk 0:03:24.4]} 34. Rxa3 {[%clk 0:02:23.6]} 34... Rxb6 {[%clk
0:03:23.6]} 35. Ra5 {[%clk 0:02:20.9]} 35... Re6 {[%clk 0:03:18.8]} 36. Rc1
{[%clk 0:02:16.5]} 36... Nxe4 {[%clk 0:03:10]} 37. Re1 {[%clk 0:02:12.6]} 37...
d3 {[%clk 0:02:45.7]} 38. Rd5 {[%clk 0:01:43.4]} 38... d2 {[%clk 0:02:24.4]} 39.
Rxe4 {[%clk 0:01:26.2]} 39... Ra6 {[%clk 0:02:06.6]} 40. f3 {[%clk 0:01:02.8]}
40... Ra1+ {[%clk 0:02:04.5]} 41. Kf2 {[%clk 0:01:01.5]} 41... d1=Q {[%clk
0:01:55.1]} 42. Rxd1 {[%clk 0:00:59.5]} 1/2-1/2

[Event "Live Chess"]
[Site "Chess.com"]
[Date "2024.06.02"]
[Round "-"]
[White "juniortay"]
[Black "GEMdzq"]
[Result "1-0"]
[WhiteElo "2350"]
[BlackElo "2290"]
[TimeControl "300"]
[EndTime "5:53:35 PDT"]
[Termination "juniortay won by resignation"]

1. e4 {[%clk 0:04:57.7]} 1... Nf6 {[%clk 0:04:58.2]} 2. Nf3 {[%clk 0:04:57.6]}
2... Nxe4 {[%clk 0:04:56.4]} 3. Nc3 {[%clk 0:04:57.5]} 3... Nf6 {[%clk 0:04:54]}
4. d4 {[%clk 0:04:56.2]} 4... e6 {[%clk 0:04:52.5]} 5. Bd3 {[%clk 0:04:54.9]}
5... c5 {[%clk 0:04:51.2]} 6. dxc5 {[%clk 0:04:53.6]} 6... Bxc5 {[%clk
0:04:49.8]} 7. O-O {[%clk 0:04:53.2]} 7... d5 {[%clk 0:04:46.6]} 8. Bg5 {[%clk
0:04:52.2]} 8... Be7 {[%clk 0:04:45.4]} 9. Ne5 {[%clk 0:04:51.3]} 9... Nc6
{[%clk 0:04:43]} 10. f4 {[%clk 0:04:50.6]} 10... h6 {[%clk 0:04:38.9]} 11. Bh4
{[%clk 0:04:49.2]} 11... O-O {[%clk 0:04:31.6]} 12. Kh1 {[%clk 0:04:48]} 12...
Bd7 {[%clk 0:04:25.7]} 13. Bxf6 {[%clk 0:04:43.7]} 13... Bxf6 {[%clk 0:04:24.4]}
14. Qh5 {[%clk 0:04:43.1]} 14... Nb4 {[%clk 0:04:12.9]} 15. Rf3 {[%clk
0:04:38.3]} 15... Nxd3 {[%clk 0:04:10.2]} 16. cxd3 {[%clk 0:04:38.2]} 16... Rc8
{[%clk 0:04:03.9]} 17. Rg3 {[%clk 0:04:36.1]} 17... Bxe5 {[%clk 0:03:45.2]} 18.
fxe5 {[%clk 0:04:33.2]} 18... Kh7 {[%clk 0:03:43]} 19. Rf1 {[%clk 0:04:25.9]}
19... Qe7 {[%clk 0:03:06.1]} 20. Rf6 {[%clk 0:04:19.5]} 20... g6 {[%clk
0:02:26.9]} 21. Rgxg6 {[%clk 0:04:10.1]} 21... fxg6 {[%clk 0:02:25.1]} 22. Qxg6+
{[%clk 0:04:08.9]} 22... Kh8 {[%clk 0:02:24.2]} 23. Qxh6+ {[%clk 0:04:07.5]}
23... Qh7 {[%clk 0:02:21.4]} 24. Rxf8+ {[%clk 0:04:06.2]} 24... Rxf8 {[%clk
0:02:20]} 25. Qxf8+ {[%clk 0:04:05.3]} 25... Qg8 {[%clk 0:02:18.6]} 26. Qxg8+
{[%clk 0:03:53.4]} 26... Kxg8 {[%clk 0:02:18.5]} 27. d4 {[%clk 0:03:52.9]} 27...
Kg7 {[%clk 0:02:15.9]} 28. g4 {[%clk 0:03:51.3]} 28... Kg6 {[%clk 0:02:14.8]}
29. Kg2 {[%clk 0:03:50.1]} 29... b5 {[%clk 0:02:12.7]} 30. b4 {[%clk 0:03:47.6]}
30... a6 {[%clk 0:02:11.6]} 31. Kg3 {[%clk 0:03:46.8]} 31... Be8 {[%clk
0:02:10.3]} 32. h4 {[%clk 0:03:44.9]} 32... Bf7 {[%clk 0:02:09.1]} 33. Ne2
{[%clk 0:03:43.3]} 33... Kh6 {[%clk 0:02:07.1]} 34. Nf4 {[%clk 0:03:42.1]} 34...
Bg8 {[%clk 0:02:06.2]} 35. g5+ {[%clk 0:03:39.5]} 35... Kg7 {[%clk 0:02:05.2]}
36. h5 {[%clk 0:03:39]} 36... Kf8 {[%clk 0:02:04.2]} 37. g6 {[%clk 0:03:35.6]}
37... Kg7 {[%clk 0:02:01.9]} 38. Kh4 {[%clk 0:03:33.6]} 38... Kh6 {[%clk
0:02:01.1]} 39. Nd3 {[%clk 0:03:31.5]} 1-0

[Event "Live Chess"]
[Site "Chess.com"]
[Date "2024.06.02"]
[Round "-"]
[White "dhairyapandyauk"]
[Black "Mikhail_Golubev"]
[Result "0-1"]
[WhiteElo "1639"]
[BlackElo "2484"]
[TimeControl "300"]
[EndTime "5:53:41 PDT"]
[Termination "Mikhail_Golubev won by resignation"]

1. e4 {[%clk 0:04:58.2]} 1... c5 {[%clk 0:04:56.4]} 2. c3 {[%clk 0:04:57.3]}
2... d6 {[%clk 0:04:52.9]} 3. d4 {[%clk 0:04:56.3]} 3... Nf6 {[%clk 0:04:51.7]}
4. dxc5 {[%clk 0:04:54]} 4... Nc6 {[%clk 0:04:48.9]} 5. cxd6 {[%clk 0:04:52.5]}
5... Nxe4 {[%clk 0:04:46.2]} 6. Be3 {[%clk 0:04:47.6]} 6... e5 {[%clk
0:04:28.8]} 7. Bc4 {[%clk 0:04:43.4]} 7... Nxd6 {[%clk 0:04:19.1]} 8. Bb3 {[%clk
0:04:41.4]} 8... Be7 {[%clk 0:04:18.1]} 9. Ne2 {[%clk 0:04:38.8]} 9... O-O
{[%clk 0:04:15.7]} 10. O-O {[%clk 0:04:37.9]} 10... Nf5 {[%clk 0:04:03.7]} 11.
Bc1 {[%clk 0:04:30.4]} 11... Qc7 {[%clk 0:03:54.6]} 12. Nd2 {[%clk 0:04:27.4]}
12... Rd8 {[%clk 0:03:45.9]} 13. Qc2 {[%clk 0:04:24.4]} 13... b6 {[%clk
0:03:22.1]} 14. Nf3 {[%clk 0:04:17.1]} 14... Na5 {[%clk 0:03:04.8]} 15. Bg5
{[%clk 0:04:00.4]} 15... Nxb3 {[%clk 0:02:53]} 16. Qxb3 {[%clk 0:03:59.4]} 16...
Be6 {[%clk 0:02:25.1]} 17. Qc2 {[%clk 0:03:56.3]} 17... f6 {[%clk 0:02:21.6]}
18. Bd2 {[%clk 0:03:50]} 18... Qc4 {[%clk 0:02:09]} 19. Rfe1 {[%clk 0:03:44.1]}
19... e4 {[%clk 0:01:58]} 20. Nfd4 {[%clk 0:03:41.2]} 20... Nxd4 {[%clk
0:01:55.8]} 21. Nxd4 {[%clk 0:03:39.8]} 21... Rxd4 {[%clk 0:01:52.7]} 22. b3
{[%clk 0:03:36.8]} 22... Qc6 {[%clk 0:01:51.2]} 23. Rac1 {[%clk 0:03:18.7]}
23... Rd3 {[%clk 0:01:44.6]} 0-1

[Event "Live Chess"]
[Site "Chess.com"]
[Date "2024.06.02"]
[Round "-"]
[White "vincents82"]
[Black "SavagePawn7"]
[Result "1-0"]
[WhiteElo "1991"]
[BlackElo "678"]
[TimeControl "300"]
[EndTime "5:53:41 PDT"]
[Termination "vincents82 won by resignation"]

1. e4 {[%clk 0:04:56.7]} 1... d5 {[%clk 0:04:58.3]} 2. exd5 {[%clk 0:04:55.7]}
2... Nf6 {[%clk 0:04:55.9]} 3. d4 {[%clk 0:04:54.4]} 3... Nxd5 {[%clk
0:04:54.1]} 4. Nf3 {[%clk 0:04:53.3]} 4... g6 {[%clk 0:04:52.9]} 5. Be2 {[%clk
0:04:52.6]} 5... Nc6 {[%clk 0:04:50.5]} 6. O-O {[%clk 0:04:51.8]} 6... Bg7
{[%clk 0:04:46.5]} 7. c4 {[%clk 0:04:50.8]} 7... Nb6 {[%clk 0:04:40.4]} 8. d5
{[%clk 0:04:50.1]} 8... Nb8 {[%clk 0:04:30]} 9. Nc3 {[%clk 0:04:46.3]} 9... c6
{[%clk 0:04:27.1]} 10. Bg5 {[%clk 0:04:32.7]} 10... cxd5 {[%clk 0:04:05.3]} 11.
Nxd5 {[%clk 0:04:31]} 11... Nxd5 {[%clk 0:04:03.7]} 12. cxd5 {[%clk 0:04:29.2]}
12... O-O {[%clk 0:03:57.9]} 13. Rb1 {[%clk 0:04:25.4]} 13... Bf5 {[%clk
0:03:47.7]} 14. Bd3 {[%clk 0:04:23.6]} 14... Bxd3 {[%clk 0:03:42.3]} 15. Qxd3
{[%clk 0:04:21.3]} 15... Nc6 {[%clk 0:03:37.6]} 16. Qe4 {[%clk 0:04:16.6]} 16...
f5 {[%clk 0:03:05.6]} 17. Qe6+ {[%clk 0:04:13.8]} 17... Kh8 {[%clk 0:02:59.2]}
18. dxc6 {[%clk 0:04:12.3]} 18... bxc6 {[%clk 0:02:57.3]} 19. Qxe7 {[%clk
0:04:05.9]} 19... Qxe7 {[%clk 0:02:53.6]} 20. Bxe7 {[%clk 0:04:04.8]} 20... Rfe8
{[%clk 0:02:51]} 21. Rfe1 {[%clk 0:04:03.2]} 21... Rab8 {[%clk 0:02:39.8]} 22.
b3 {[%clk 0:03:50.6]} 22... Rb7 {[%clk 0:02:30.2]} 23. Bc5 {[%clk 0:03:48.2]}
23... Bc3 {[%clk 0:02:19.2]} 24. Rxe8+ {[%clk 0:03:44.2]} 1-0

[Event "Live Chess"]
[Site "Chess.com"]
[Date "2024.06.02"]
[Round "-"]
[White "Ninifu"]
[Black "BostonStrangler"]
[Result "0-1"]
[WhiteElo "2008"]
[BlackElo "2125"]
[TimeControl "300"]
[EndTime "5:54:35 PDT"]
[Termination "BostonStrangler won by resignation"]

1. d4 {[%clk 0:04:56.7]} 1... Nf6 {[%clk 0:04:58.2]} 2. c4 {[%clk 0:04:55.4]}
2... c5 {[%clk 0:04:57.1]} 3. d5 {[%clk 0:04:54.3]} 3... b5 {[%clk 0:04:56.2]}
4. cxb5 {[%clk 0:04:53.4]} 4... a6 {[%clk 0:04:55.8]} 5. Nc3 {[%clk 0:04:52.7]}
5... axb5 {[%clk 0:04:54]} 6. e4 {[%clk 0:04:52.1]} 6... b4 {[%clk 0:04:52.7]}
7. Nb5 {[%clk 0:04:49.5]} 7... d6 {[%clk 0:04:52.2]} 8. Bf4 {[%clk 0:04:47.7]}
8... g5 {[%clk 0:04:50.7]} 9. Bxg5 {[%clk 0:04:46.2]} 9... Nxe4 {[%clk
0:04:49.8]} 10. Bf4 {[%clk 0:04:45.3]} 10... Nf6 {[%clk 0:04:38.6]} 11. Bc4
{[%clk 0:04:26.1]} 11... Bg7 {[%clk 0:04:36]} 12. Nf3 {[%clk 0:04:22]} 12... O-O
{[%clk 0:04:33.3]} 13. O-O {[%clk 0:04:21.4]} 13... Nbd7 {[%clk 0:04:31.7]} 14.
a4 {[%clk 0:03:48.4]} 14... bxa3 {[%clk 0:04:27.4]} 15. Rxa3 {[%clk 0:03:46.7]}
15... Rxa3 {[%clk 0:04:24.7]} 16. bxa3 {[%clk 0:03:39]} 16... Nb6 {[%clk
0:04:23.6]} 17. Ba2 {[%clk 0:03:35.6]} 17... Bb7 {[%clk 0:04:22]} 18. Nc3 {[%clk
0:03:25.5]} 18... Qa8 {[%clk 0:04:17.3]} 19. Re1 {[%clk 0:03:21]} 19... Re8
{[%clk 0:04:09.9]} 20. Qd2 {[%clk 0:03:06.8]} 20... Qxa3 {[%clk 0:03:57.6]} 21.
Rb1 {[%clk 0:02:50.7]} 21... Nbxd5 {[%clk 0:03:48.4]} 22. Nxd5 {[%clk
0:02:00.1]} 22... Ne4 {[%clk 0:03:36.5]} 23. Qc1 {[%clk 0:01:31]} 23... Qxa2
{[%clk 0:03:28.6]} 24. Rxb7 {[%clk 0:01:01.7]} 24... Qxd5 {[%clk 0:03:25.8]} 25.
Ra7 {[%clk 0:00:48.2]} 25... Nc3 {[%clk 0:03:21.8]} 26. Qf1 {[%clk 0:00:20.5]}
26... Rb8 {[%clk 0:03:05.3]} 0-1

[Event "Live Chess"]
[Site "Chess.com"]
[Date "2024.06.02"]
[Round "-"]
[White "grillage"]
[Black "elephantgerrald"]
[Result "1-0"]
[WhiteElo "1865"]
[BlackElo "871"]
[TimeControl "300"]
[EndTime "5:55:19 PDT"]
[Termination "grillage won on time"]

1. d4 {[%clk 0:04:57.4]} 1... d5 {[%clk 0:04:58.9]} 2. Nf3 {[%clk 0:04:52.7]}
2... Nc6 {[%clk 0:04:57]} 3. Bf4 {[%clk 0:04:48.2]} 3... Nf6 {[%clk 0:04:39.4]}
4. c4 {[%clk 0:04:43.9]} 4... dxc4 {[%clk 0:04:30]} 5. e3 {[%clk 0:04:39.2]}
5... Be6 {[%clk 0:04:20.8]} 6. Ng5 {[%clk 0:04:32.3]} 6... g6 {[%clk 0:04:10.9]}
7. Nxe6 {[%clk 0:04:29.6]} 7... fxe6 {[%clk 0:04:06.4]} 8. Bxc4 {[%clk
0:04:27.6]} 8... e5 {[%clk 0:03:55.6]} 9. dxe5 {[%clk 0:04:20.6]} 9... Qxd1+
{[%clk 0:03:52]} 10. Kxd1 {[%clk 0:04:19.4]} 10... Ne4 {[%clk 0:03:51.2]} 11.
Ke2 {[%clk 0:04:13.3]} 11... O-O-O {[%clk 0:03:39.4]} 12. Nc3 {[%clk 0:03:54.7]}
12... Rd2+ {[%clk 0:03:27.7]} 13. Ke1 {[%clk 0:03:45.4]} 13... Nb4 {[%clk
0:03:14.1]} 14. Nxe4 {[%clk 0:03:41.5]} 14... Nc2+ {[%clk 0:03:09.9]} 15. Kxd2
{[%clk 0:03:40]} 15... Nxa1 {[%clk 0:03:07.1]} 16. Rxa1 {[%clk 0:03:38.6]} 16...
b6 {[%clk 0:03:04.5]} 17. Rc1 {[%clk 0:03:32.9]} 17... Kb7 {[%clk 0:03:04.4]}
18. Bd5+ {[%clk 0:03:25.4]} 18... Ka6 {[%clk 0:02:59]} 19. Rxc7 {[%clk
0:03:22.4]} 19... e6 {[%clk 0:02:54.2]} 20. Bc4+ {[%clk 0:03:18.9]} 20... b5
{[%clk 0:02:50.7]} 21. Bd3 {[%clk 0:03:17.1]} 21... Bb4+ {[%clk 0:02:36.3]} 22.
Ke2 {[%clk 0:03:13.2]} 22... Ba5 {[%clk 0:02:24.7]} 23. Rc6+ {[%clk 0:02:56.6]}
23... Kb7 {[%clk 0:02:00.7]} 24. Rxe6 {[%clk 0:02:55.5]} 24... Rd8 {[%clk
0:01:57.1]} 25. Re7+ {[%clk 0:02:51.4]} 25... Kc6 {[%clk 0:01:55]} 26. Rxa7
{[%clk 0:02:48.6]} 26... Bb6 {[%clk 0:01:43]} 27. Rxh7 {[%clk 0:02:46.8]} 27...
Kd5 {[%clk 0:01:17.4]} 28. Nc3+ {[%clk 0:02:31.7]} 28... Kc6 {[%clk 0:01:00]}
29. Bxb5+ {[%clk 0:02:29.8]} 29... Kc5 {[%clk 0:00:04.7]} 30. e6 {[%clk
0:02:26]} 30... Kb4 {[%clk 0:00:03.5]} 31. e7 {[%clk 0:02:23.5]} 31... Rd4
{[%clk 0:00:02.8]} 32. e8=Q {[%clk 0:02:14.6]} 32... Rd5 {[%clk 0:00:01.5]} 33.
Nxd5+ {[%clk 0:02:05.5]} 33... Ka5 {[%clk 0:00:01.4]} 34. Nxb6 {[%clk
0:01:57.6]} 1-0

[Event "Live Chess"]
[Site "Chess.com"]
[Date "2024.06.02"]
[Round "-"]
[White "FlyingChessKestrel13"]
[Black "yarek"]
[Result "1-0"]
[WhiteElo "2086"]
[BlackElo "1757"]
[TimeControl "300"]
[EndTime "5:55:25 PDT"]
[Termination "FlyingChessKestrel13 won by resignation"]

1. e4 {[%clk 0:04:58.6]} 1... g6 {[%clk 0:04:57.7]} 2. d3 {[%clk 0:04:57.1]}
2... Bg7 {[%clk 0:04:57.3]} 3. Nc3 {[%clk 0:04:56.5]} 3... c6 {[%clk 0:04:56.1]}
4. h4 {[%clk 0:04:56]} 4... h5 {[%clk 0:04:53.6]} 5. Nf3 {[%clk 0:04:54.7]} 5...
d5 {[%clk 0:04:52.4]} 6. Be2 {[%clk 0:04:52.6]} 6... Bg4 {[%clk 0:04:50.3]} 7.
exd5 {[%clk 0:04:51.2]} 7... cxd5 {[%clk 0:04:48.8]} 8. Bf4 {[%clk 0:04:50.7]}
8... e6 {[%clk 0:04:44.3]} 9. Ne5 {[%clk 0:04:48]} 9... Bxe2 {[%clk 0:04:41.5]}
10. Qxe2 {[%clk 0:04:46.2]} 10... Nf6 {[%clk 0:04:36.5]} 11. Bg5 {[%clk
0:04:43]} 11... O-O {[%clk 0:04:31.6]} 12. O-O-O {[%clk 0:04:41.1]} 12... Nc6
{[%clk 0:04:27.5]} 13. d4 {[%clk 0:04:38.4]} 13... Qb6 {[%clk 0:04:17.3]} 14.
Qe3 {[%clk 0:04:35.2]} 14... Rac8 {[%clk 0:04:04.9]} 15. Bxf6 {[%clk 0:04:33.4]}
15... Bxf6 {[%clk 0:04:03.2]} 16. Nd7 {[%clk 0:04:32.4]} 16... Qd8 {[%clk
0:03:59.6]} 17. Nxf8 {[%clk 0:04:29.9]} 17... Qxf8 {[%clk 0:03:58.5]} 18. Kb1
{[%clk 0:04:28.2]} 18... Qb4 {[%clk 0:03:57.1]} 19. Ne2 {[%clk 0:04:25.1]} 19...
e5 {[%clk 0:03:41.5]} 20. c3 {[%clk 0:04:12.1]} 20... Qxd4 {[%clk 0:03:23.3]}
21. cxd4 {[%clk 0:04:08.5]} 1-0

[Event "Live Chess"]
[Site "Chess.com"]
[Date "2024.06.02"]
[Round "-"]
[White "GEMdzq"]
[Black "vincents82"]
[Result "1-0"]
[WhiteElo "2292"]
[BlackElo "1989"]
[TimeControl "300"]
[EndTime "5:55:27 PDT"]
[Termination "GEMdzq won by resignation"]

1. e4 {[%clk 0:04:57.7]} 1... d5 {[%clk 0:04:58.9]} 2. exd5 {[%clk 0:04:56.7]}
2... Qxd5 {[%clk 0:04:58.1]} 3. Nc3 {[%clk 0:04:56]} 3... Qd8 {[%clk 0:04:57]}
4. d4 {[%clk 0:04:55.3]} 4... Nf6 {[%clk 0:04:55.9]} 5. Bc4 {[%clk 0:04:54.3]}
5... a5 {[%clk 0:04:54.8]} 6. Nf3 {[%clk 0:04:52.3]} 6... Nc6 {[%clk 0:04:53.9]}
7. O-O {[%clk 0:04:50]} 7... Bg4 {[%clk 0:04:52.9]} 8. Be3 {[%clk 0:04:44]} 8...
e6 {[%clk 0:04:49.8]} 9. h3 {[%clk 0:04:43.1]} 9... Bxf3 {[%clk 0:04:48.7]} 10.
Qxf3 {[%clk 0:04:41.8]} 10... Be7 {[%clk 0:04:47]} 11. Rad1 {[%clk 0:04:39.8]}
11... O-O {[%clk 0:04:45.2]} 12. d5 {[%clk 0:04:38.9]} 12... exd5 {[%clk
0:04:42.7]} 13. Nxd5 {[%clk 0:04:38.8]} 13... Nxd5 {[%clk 0:04:41.5]} 14. Bxd5
{[%clk 0:04:37.9]} 14... Bd6 {[%clk 0:04:40.9]} 15. c4 {[%clk 0:04:27.1]} 15...
Qe7 {[%clk 0:04:36.8]} 16. Rfe1 {[%clk 0:04:21.5]} 16... Rfe8 {[%clk 0:04:32]}
17. c5 {[%clk 0:04:15]} 17... Bxc5 {[%clk 0:04:30.9]} 18. Bxc5 {[%clk
0:04:14.3]} 18... Qxc5 {[%clk 0:04:29.5]} 19. Bxf7+ {[%clk 0:04:12.1]} 1-0

[Event "Live Chess"]
[Site "Chess.com"]
[Date "2024.06.02"]
[Round "-"]
[White "nitrofish07"]
[Black "ClassyChameleon"]
[Result "1-0"]
[WhiteElo "2074"]
[BlackElo "1547"]
[TimeControl "300"]
[EndTime "5:55:40 PDT"]
[Termination "nitrofish07 won by resignation"]

1. d4 {[%clk 0:04:58.1]} 1... d5 {[%clk 0:04:58.9]} 2. c4 {[%clk 0:04:57.6]}
2... e6 {[%clk 0:04:58.6]} 3. g3 {[%clk 0:04:57.1]} 3... Nf6 {[%clk 0:04:58.2]}
4. Bg2 {[%clk 0:04:56.7]} 4... c6 {[%clk 0:04:56]} 5. Nf3 {[%clk 0:04:56.2]}
5... Bd6 {[%clk 0:04:54.7]} 6. O-O {[%clk 0:04:55.8]} 6... O-O {[%clk
0:04:53.7]} 7. Nc3 {[%clk 0:04:55.5]} 7... b6 {[%clk 0:04:50.6]} 8. Nd2 {[%clk
0:04:54.7]} 8... e5 {[%clk 0:04:46.1]} 9. dxe5 {[%clk 0:04:50.7]} 9... Bxe5
{[%clk 0:04:45.3]} 10. cxd5 {[%clk 0:04:47.6]} 10... Nxd5 {[%clk 0:04:43.7]} 11.
Nxd5 {[%clk 0:04:45.9]} 11... cxd5 {[%clk 0:04:42.6]} 12. Nf3 {[%clk 0:04:44.7]}
12... Bf6 {[%clk 0:04:32.7]} 13. Be3 {[%clk 0:04:43.1]} 13... Na6 {[%clk
0:04:25.4]} 14. Bd4 {[%clk 0:04:39.3]} 14... Bxd4 {[%clk 0:04:23.4]} 15. Nxd4
{[%clk 0:04:39.2]} 15... Bb7 {[%clk 0:04:22.1]} 16. e3 {[%clk 0:04:37]} 16...
Nc5 {[%clk 0:04:15.5]} 17. Rc1 {[%clk 0:04:34.2]} 17... Rc8 {[%clk 0:04:14]} 18.
b4 {[%clk 0:04:29.6]} 18... Ne4 {[%clk 0:04:06]} 19. Qd3 {[%clk 0:04:25.2]}
19... Qe7 {[%clk 0:03:48.8]} 20. a3 {[%clk 0:04:19.7]} 20... h6 {[%clk
0:03:38.9]} 21. Rfd1 {[%clk 0:04:17]} 21... Qe5 {[%clk 0:03:12.7]} 22. Nf3
{[%clk 0:04:13.3]} 22... Qe6 {[%clk 0:02:59.7]} 23. Nd2 {[%clk 0:04:11.6]} 23...
Rxc1 {[%clk 0:02:50.5]} 24. Rxc1 {[%clk 0:04:09.6]} 24... Rd8 {[%clk 0:02:47.7]}
25. Nxe4 {[%clk 0:04:07.2]} 25... dxe4 {[%clk 0:02:43.2]} 26. Qxd8+ {[%clk
0:04:05.9]} 26... Kh7 {[%clk 0:02:43.1]} 27. Qd4 {[%clk 0:04:01]} 27... f5
{[%clk 0:02:39.4]} 28. Rd1 {[%clk 0:03:57.1]} 28... Ba6 {[%clk 0:02:35.2]} 29.
Qd5 {[%clk 0:03:53.3]} 29... Qg6 {[%clk 0:02:31]} 30. Bh3 {[%clk 0:03:52.1]}
30... Qh5 {[%clk 0:02:23.7]} 31. Bxf5+ {[%clk 0:03:47.1]} 1-0